fUSD/lending_fUSD_20250111
["ID","MTS","AMOUNT","RATE_DAILY","PERIOD"]
[348563334,1736620259698,-500.0,0.00011087,2]
[348563335,1736620259707,-500.0,0.00011087,2]
[348563336,1736620259716,-500.0,0.00011087,2]
[348563337,1736620259726,-500.0,0.00011087,2]
[348563338,1736620259735,-500.0,0.00011087,2]
[348563339,1736620259744,-500.0,0.00011087,2]
[348563340,1736620259753,-500.0,0.00011087,2]
[348563341,1736620259762,-589.99,0.00011087,2]
[348563342,1736620259771,-500.0,0.00011087,2]
[348563343,1736620259780,-500.0,0.00011087,2]
[348563344,1736620259789,-500.0,0.00011087,2]
[348563345,1736620259798,-558.52156047,0.00011087,2]
[348563346,1736620259807,-337.90711203,0.00011087,2]
[348563347,1736620259816,-500.0,0.00011087,2]
[348563348,1736620259825,-350.66603749,0.00011087,2]
[348563349,1736620259835,-500.0,0.00011087,2]
[348563350,1736620259844,-500.0,0.00011087,2]
[348563351,1736620259854,-500.0,0.00011087,2]
[348563352,1736620259864,-500.0,0.00011087,2]
[348563353,1736620259873,-500.0,0.00011087,2]
[348563354,1736620259882,-500.0,0.00011087,2]
[348563355,1736620259891,-500.0,0.00011087,2]
[348563356,1736620259900,-500.0,0.00011087,2]
[348563357,1736620259909,-500.0,0.00011087,2]
[348563358,1736620259922,-500.0,0.00011087,2]
[348563359,1736620259931,-500.0,0.00011087,2]
[348563360,1736620259940,-500.0,0.00011087,2]
[348563361,1736620259949,-500.0,0.00011087,2]
[348563362,1736620259957,-500.0,0.00011087,2]
[348563363,1736620259967,-500.0,0.00011087,2]
[348563364,1736620259976,-500.0,0.00011087,2]
[348563365,1736620259986,-500.0,0.00011087,2]
[348563366,1736620259995,-500.0,0.00011087,2]
[348563367,1736620260004,-500.0,0.00011087,2]
[348563368,1736620260014,-500.0,0.00011087,2]
[348563369,1736620260024,-500.0,0.00011087,2]
[348563370,1736620260033,-500.0,0.00011087,2]
[348563371,1736620260043,-500.0,0.00011087,2]
[348563372,1736620260052,-500.0,0.00011087,2]
[348563373,1736620260062,-500.0,0.00011087,2]
[348563374,1736620260071,-500.0,0.00011087,2]
[348563375,1736620260081,-500.0,0.00011087,2]
[348563376,1736620260091,-500.0,0.00011087,2]
[348563377,1736620260101,-500.0,0.00011087,2]
[348563378,1736620260111,-500.0,0.00011087,2]
[348563379,1736620260121,-500.0,0.00011087,2]
[348563380,1736620260130,-500.0,0.00011087,2]
[348563381,1736620260140,-500.0,0.00011087,2]
[348563382,1736620260150,-500.0,0.00011087,2]
[348563383,1736620260159,-500.0,0.00011087,2]
[348563384,1736620260169,-500.0,0.00011087,2]
[348563385,1736620260178,-500.0,0.00011088,2]
[348563386,1736620260187,-500.0,0.00011088,2]
[348563387,1736620260196,-500.0,0.00011088,2]
[348563388,1736620260205,-500.0,0.00011088,2]
[348563389,1736620260214,-1284.37,0.00011088,2]
[348563390,1736620260224,-1781.7,0.00011088,2]
[348563391,1736620260237,-915.17,0.00011088,2]
[348563392,1736620260246,-897.57,0.00011088,2]
[348563393,1736620260256,-500.0,0.0001109,2]
[348563394,1736620260265,-500.0,0.0001109,2]
[348563395,1736620260275,-500.0,0.0001109,2]
[348563396,1736620260284,-921.38,0.0001109,2]
[348563397,1736620260294,-726.25,0.0001109,2]
[348563398,1736620260303,-1623.08,0.0001109,2]
[348563399,1736620260315,-527.84,0.0001109,2]
[348563400,1736620260325,-1062.89,0.0001109,2]
[348563401,1736620260336,-1566.04,0.0001109,2]
[348563402,1736620260346,-6943.01,0.0001109,2]
[348563403,1736620260356,-500.0,0.0001109,2]
[348563404,1736620260365,-523.34,0.0001109,2]
[348563405,1736620260375,-1589.16,0.0001109,2]
[348563406,1736620260384,-500.0,0.0001109,2]
[348563407,1736620260394,-774.86,0.0001109,2]
[348563408,1736620260404,-1100.64,0.0001109,2]
[348563409,1736620260413,-1000.0,0.0001109,2]
[348563410,1736620260423,-721.14,0.0001109,2]
[348563411,1736620260434,-1579.79,0.0001109,2]
[348563412,1736620260445,-1314.67,0.0001109,2]
[348563413,1736620260456,-8469.98920169,0.00011099,2]
[348563414,1736620260468,-8469.98920169,0.00011099,2]
[348563415,1736620260479,-208.76349431,0.00011163,2]
[348563416,1736620260489,-8469.98920169,0.00011164,2]
[348563417,1736620260500,-762.0,0.00011213,2]
[348563418,1736620260509,-153.0,0.00011224,2]
[348563419,1736620260519,-153.0,0.00011224,2]
[348563420,1736620260527,-153.0,0.00011224,2]
[348563421,1736620260537,-153.0,0.00011224,2]
[348563422,1736620260547,-153.0,0.00011224,2]
[348563423,1736620260556,-153.0,0.00011224,2]
[348563424,1736620260565,-153.0,0.00011224,2]
[348563425,1736620260575,-153.0,0.00011224,2]
[348563426,1736620260584,-153.0,0.00011224,2]
[348563427,1736620260595,-153.0,0.00011224,2]
[348563428,1736620260604,-153.0,0.00011224,2]
[348563429,1736620260613,-166.0,0.00011233,2]
[348563430,1736620260623,-960.36,0.0001126,2]
[348563431,1736620260632,-696.05,0.0001126,2]
[348563432,1736620260641,-500.0,0.0001126,2]
[348563433,1736620260651,-1667.23,0.0001126,2]
[348563434,1736620260661,-2283.16,0.0001126,2]
[348563435,1736620260670,-3818.4,0.0001126,2]
[348563436,1736620260680,-2248.19,0.0001126,2]
[348563437,1736620260690,-500.0,0.0001126,2]
[348563438,1736620260700,-1177.39,0.0001126,2]
[348563439,1736620260710,-716.54,0.0001126,2]
[348563440,1736620260719,-2715.96,0.0001126,2]
[348563441,1736620260729,-500.0,0.0001126,2]
[348563442,1736620260739,-500.0,0.0001126,2]
[348563443,1736620260749,-500.0,0.0001126,2]
[348563444,1736620260758,-500.0,0.0001126,2]
[348563445,1736620260768,-684.54,0.0001126,2]
[348563446,1736620260777,-761.21,0.0001126,2]
[348563447,1736620260787,-500.0,0.0001126,2]
[348563448,1736620260797,-500.0,0.0001126,2]
[348563449,1736620260806,-500.0,0.0001126,2]
[348563450,1736620260816,-500.0,0.0001126,2]
[348563451,1736620260825,-534.51101367,0.0001126,2]
[348563452,1736620260835,-500.0,0.00011261,2]
[348563453,1736620260844,-567.16,0.00011261,2]
[348563454,1736620260854,-672.05,0.00011261,2]
[348563455,1736620260863,-500.0,0.00011261,2]
[348563456,1736620260873,-500.0,0.00011261,2]
[348563457,1736620260882,-500.0,0.00011261,2]
[348563458,1736620260891,-500.0,0.00011261,2]
[348563459,1736620260900,-500.0,0.00011261,2]
[348563460,1736620260910,-500.0,0.00011261,2]
[348563461,1736620260923,-500.0,0.00011261,2]
[348563462,1736620260932,-500.0,0.00011261,2]
[348563463,1736620260941,-500.0,0.00011261,2]
[348563464,1736620260951,-500.0,0.00011261,2]
[348563465,1736620260960,-557.51,0.00011261,2]
[348563466,1736620260969,-576.99,0.00011261,2]
[348563467,1736620260978,-527.5,0.00011261,2]
[348563468,1736620260988,-500.0,0.00011261,2]
[348563469,1736620260997,-500.0,0.00011261,2]
[348563470,1736620261006,-500.0,0.00011261,2]
[348563471,1736620261016,-500.0,0.00011261,2]
[348563472,1736620261025,-500.0,0.00011261,2]
[348563473,1736620261034,-500.0,0.00011261,2]
[348563474,1736620261044,-500.0,0.00011261,2]
[348563475,1736620261053,-671.41,0.00011261,2]
[348563476,1736620261063,-500.0,0.00011261,2]
[348563477,1736620261072,-500.0,0.00011261,2]
[348563478,1736620261082,-735.55,0.00011261,2]
[348563479,1736620261091,-500.0,0.00011261,2]
[348563480,1736620261100,-614.43,0.00011261,2]
[348563481,1736620261110,-500.0,0.00011261,2]
[348563482,1736620261119,-687.44,0.00011261,2]
[348563483,1736620261129,-500.0,0.00011261,2]
[348563484,1736620261139,-500.0,0.00011261,2]
[348563485,1736620261148,-500.0,0.00011261,2]
[348563486,1736620261157,-733.21,0.00011261,2]
[348563487,1736620261167,-500.0,0.00011261,2]
[348563488,1736620261177,-500.0,0.00011261,2]
[348563489,1736620261187,-429.86793469,0.00011261,2]
[348563490,1736620261196,-500.0,0.00011261,2]
[348563491,1736620261206,-500.0,0.00011261,2]
[348563492,1736620261215,-500.0,0.00011261,2]
[348563493,1736620261225,-500.0,0.00011261,2]
[348563494,1736620261238,-1217.93,0.00011261,2]
[348563495,1736620261249,-500.0,0.00011261,2]
[348563496,1736620261259,-500.0,0.00011261,2]
[348563497,1736620261268,-500.0,0.00011261,2]
[348563498,1736620261278,-500.0,0.00011261,2]
[348563499,1736620261287,-500.0,0.00011261,2]
[348563500,1736620261297,-1733.16,0.00011261,2]
[348563501,1736620261306,-500.0,0.00011261,2]
[348563502,1736620261316,-500.0,0.00011261,2]
[348563503,1736620261326,-500.0,0.00011261,2]
[348563504,1736620261336,-367.65,0.00011261,2]
[348563505,1736620261346,-500.0,0.00011261,2]
[348563506,1736620261356,-954.12,0.00011261,2]
[348563507,1736620261365,-500.0,0.00011261,2]
[348563508,1736620261375,-500.0,0.00011261,2]
[348563509,1736620261384,-500.0,0.00011261,2]
[348563510,1736620261394,-217.120428,0.00011261,2]
[348563511,1736620261404,-622.38,0.00011261,2]
[348563512,1736620261413,-522.79,0.00011261,2]
[348563513,1736620261426,-2493.03,0.00011261,2]
[348563514,1736620261437,-500.0,0.00011261,2]
[348563515,1736620261447,-500.0,0.00011261,2]
[348563516,1736620261457,-1215.65,0.00011261,2]
[348563517,1736620261467,-2849.11,0.00011261,2]
[348563518,1736620261477,-500.0,0.00011261,2]
[348563519,1736620261487,-186.267351,0.00011261,2]
[348563520,1736620261496,-1952.06,0.00011261,2]
[348563521,1736620261506,-5755.78,0.00011261,2]
[348563522,1736620261516,-500.0,0.00011261,2]
[348563523,1736620261526,-500.0,0.00011261,2]
[348563524,1736620261536,-1304.79,0.00011261,2]
[348563525,1736620261546,-500.0,0.00011261,2]
[348563526,1736620261556,-818.64,0.00011261,2]
[348563527,1736620261567,-587.15,0.00011261,2]
[348563528,1736620261576,-500.0,0.00011261,2]
[348563529,1736620261586,-500.0,0.00011261,2]
[348563530,1736620261596,-506.69,0.00011261,2]
[348563531,1736620261606,-1028.71,0.00011261,2]
[348563532,1736620261616,-500.0,0.00011261,2]
[348563533,1736620261626,-500.0,0.00011261,2]
[348563534,1736620261636,-551.6,0.00011261,2]
[348563535,1736620261646,-500.0,0.00011261,2]
[348563536,1736620261656,-3008.65,0.00011261,2]
[348563537,1736620261665,-500.0,0.00011261,2]
[348563538,1736620261679,-2939.45,0.00011261,2]
[348563539,1736620261689,-500.0,0.00011261,2]
[348563540,1736620261699,-500.0,0.00011261,2]
[348563541,1736620261709,-500.0,0.00011261,2]
[348563542,1736620261719,-584.79,0.00011261,2]
[348563543,1736620261729,-500.0,0.00011261,2]
[348563544,1736620261739,-500.0,0.00011261,2]
[348563545,1736620261748,-500.0,0.00011261,2]
[348563546,1736620261757,-2813.01,0.00011261,2]
[348563547,1736620261766,-500.0,0.00011261,2]
[348563548,1736620261776,-2066.76,0.00011261,2]
[348563549,1736620261786,-500.0,0.00011261,2]
[348563550,1736620261796,-1001.95,0.00011261,2]
[348563551,1736620261806,-500.0,0.00011261,2]
[348563552,1736620261815,-500.0,0.00011261,2]
[348563553,1736620261825,-500.0,0.00011261,2]
[348563554,1736620261834,-3166.08,0.00011261,2]
[348563555,1736620261844,-500.0,0.00011261,2]
[348563556,1736620261853,-500.0,0.00011261,2]
[348563557,1736620261863,-502.2,0.00011261,2]
[348563558,1736620261872,-539.7,0.00011261,2]
[348563559,1736620261882,-500.0,0.00011261,2]
[348563560,1736620261891,-2016.16,0.00011261,2]
[348563561,1736620261900,-500.0,0.00011261,2]
[348563562,1736620261910,-500.0,0.00011261,2]
[348563563,1736620261923,-1138.0,0.00011261,2]
[348563564,1736620261932,-500.0,0.00011261,2]
[348563565,1736620261942,-500.0,0.00011261,2]
[348563566,1736620261951,-738.79,0.00011261,2]
[348563567,1736620261961,-609.84,0.00011261,2]
[348563568,1736620261970,-500.0,0.00011262,2]
[348563569,1736620261980,-500.0,0.00011262,2]
[348563570,1736620261989,-500.0,0.00011262,2]
[348563571,1736620261998,-500.0,0.00011262,2]
[348563572,1736620262008,-500.0,0.00011262,2]
[348563573,1736620262018,-500.0,0.00011262,2]
[348563574,1736620262028,-500.0,0.00011262,2]
[348563575,1736620262038,-500.0,0.00011262,2]
[348563576,1736620262047,-500.0,0.00011262,2]
[348563577,1736620262057,-500.0,0.00011262,2]
[348563578,1736620262067,-500.0,0.00011262,2]
[348563579,1736620262076,-500.0,0.00011262,2]
[348563580,1736620262086,-500.0,0.00011262,2]
[348563581,1736620262096,-500.0,0.00011262,2]
[348563582,1736620262105,-500.0,0.00011262,2]
[348563583,1736620262114,-500.0,0.00011262,2]
[348563584,1736620262123,-500.0,0.00011262,2]
[348563585,1736620262132,-500.0,0.00011262,2]
[348563586,1736620262289,-500.0,0.00011262,2]
[348563587,1736620262299,-500.0,0.00011262,2]
[348563588,1736620262309,-500.0,0.00011262,2]
[348563589,1736620262318,-500.0,0.00011262,2]
[348563590,1736620262328,-500.0,0.00011262,2]
[348563591,1736620262337,-500.0,0.00011262,2]
[348563592,1736620262347,-572.54,0.00011262,2]
[348563593,1736620262356,-500.0,0.00011262,2]
[348563594,1736620262365,-286.35,0.00011262,2]
[348563595,1736620262375,-500.0,0.00011262,2]
[348563596,1736620262384,-500.0,0.00011262,2]
[348563597,1736620262394,-500.0,0.00011262,2]
[348563598,1736620262404,-378.14,0.00011262,2]
[348563599,1736620262414,-500.0,0.00011262,2]
[348563600,1736620262425,-500.0,0.00011262,2]
[348563601,1736620262435,-500.0,0.00011262,2]
[348563602,1736620262444,-500.0,0.00011262,2]
[348563603,1736620262453,-500.0,0.00011262,2]
[348563604,1736620262462,-500.0,0.00011262,2]
[348563605,1736620262471,-568.33,0.00011262,2]
[348563606,1736620262481,-500.0,0.00011262,2]
[348563607,1736620262492,-540.54,0.00011262,2]
[348563608,1736620262501,-612.39,0.00011262,2]
[348563609,1736620262511,-500.0,0.00011262,2]
[348563610,1736620262520,-500.0,0.00011262,2]
[348563611,1736620262529,-500.0,0.00011262,2]
[348563612,1736620262538,-500.0,0.00011262,2]
[348563613,1736620262548,-703.64,0.00011262,2]
[348563614,1736620262557,-500.0,0.00011262,2]
[348563615,1736620262566,-500.0,0.00011262,2]
[348563616,1736620262576,-500.0,0.00011262,2]
[348563617,1736620262585,-500.0,0.00011262,2]
[348563618,1736620262595,-1024.51,0.00011262,2]
[348563619,1736620262605,-1100.94,0.00011263,2]
[348563620,1736620262614,-1523.13,0.00011263,2]
[348563621,1736620262624,-926.27,0.00011263,2]
[348563622,1736620262633,-1703.67,0.00011263,2]
[348563623,1736620262643,-1794.24,0.00011263,2]
[348563624,1736620262652,-2156.82,0.00011263,2]
[348563625,1736620262662,-1820.4,0.00011263,2]
[348563626,1736620262672,-2988.31,0.00011263,2]
[348563627,1736620262682,-1199.45,0.00011263,2]
[348563628,1736620262692,-1212.35,0.00011263,2]
[348563629,1736620262702,-944.58,0.00011263,2]
[348563630,1736620262712,-1372.48,0.00011263,2]
[348563631,1736620262721,-1189.63,0.00011263,2]
[348563632,1736620262731,-708.76,0.00011263,2]
[348563633,1736620262741,-2583.19,0.00011263,2]
[348563634,1736620262751,-610.52,0.00011263,2]
[348563635,1736620262760,-429.82131162,0.00011297,2]
[348563636,1736620262769,-151.27,0.00011315,2]
[348563637,1736620262779,-208.76349431,0.00011321,2]
[348563638,1736620262788,-500.0,0.00011361,2]
[348563639,1736620262799,-373.46086691,0.00011361,2]
[348563640,1736620262810,-500.0,0.00011361,2]
[348563641,1736620262819,-185.73365752,0.00011361,2]
[348563642,1736620262829,-500.0,0.00011361,2]
[348563643,1736620262838,-500.0,0.00011361,2]
[348563644,1736620262848,-346.83,0.00011361,2]
[348563645,1736620262858,-411.4,0.00011361,2]
[348563646,1736620262868,-500.0,0.00011361,2]
[348563647,1736620262878,-203.3078215,0.00011361,2]
[348563648,1736620262887,-500.0,0.00011361,2]
[348563649,1736620262896,-500.0,0.00011361,2]
[348563650,1736620262905,-500.0,0.00011361,2]
[348563651,1736620262915,-500.0,0.00011361,2]
[348563652,1736620262926,-500.0,0.00011361,2]
[348563653,1736620262936,-500.0,0.00011361,2]
[348563654,1736620262946,-500.0,0.00011361,2]
[348563655,1736620262957,-500.0,0.00011361,2]
[348563656,1736620262966,-500.0,0.00011361,2]
[348563657,1736620262977,-500.0,0.00011361,2]
[348563658,1736620262986,-500.0,0.00011361,2]
[348563659,1736620262996,-500.0,0.00011361,2]
[348563660,1736620263005,-500.0,0.00011361,2]
[348563661,1736620263014,-500.0,0.00011361,2]
[348563662,1736620263023,-500.0,0.00011361,2]
[348563663,1736620263034,-500.0,0.00011361,2]
[348563664,1736620263045,-500.0,0.00011361,2]
[348563665,1736620263055,-500.0,0.00011361,2]
[348563666,1736620263065,-500.0,0.00011361,2]
[348563667,1736620263075,-336.23432762,0.00011361,2]
[348563668,1736620263085,-500.0,0.00011361,2]
[348563669,1736620263095,-500.0,0.00011361,2]
[348563670,1736620263105,-500.0,0.00011361,2]
[348563671,1736620263114,-500.0,0.00011361,2]
[348563672,1736620263124,-500.0,0.00011361,2]
[348563673,1736620263134,-428.74,0.00011361,2]
[348563674,1736620263143,-500.0,0.00011361,2]
[348563675,1736620263152,-500.0,0.00011361,2]
[348563676,1736620263162,-639.27,0.00011361,2]
[348563677,1736620263173,-273.89696116,0.00011361,2]
[348563678,1736620263183,-533.08559234,0.00011361,2]
[348563679,1736620263192,-564.13,0.00011362,2]
[348563680,1736620263201,-500.0,0.00011362,2]
[348563681,1736620263209,-500.0,0.00011362,2]
[348563682,1736620263218,-500.0,0.00011362,2]
[348563683,1736620263228,-1284.37,0.00011362,2]
[348563684,1736620263241,-1781.7,0.00011362,2]
[348563685,1736620263251,-915.17,0.00011362,2]
[348563686,1736620263260,-897.57,0.00011362,2]
[348563687,1736620263270,-500.0,0.00011364,2]
[348563688,1736620263279,-500.0,0.00011364,2]
[348563689,1736620263288,-500.0,0.00011364,2]
[348563690,1736620263298,-921.38,0.00011364,2]
[348563691,1736620263307,-726.25,0.00011364,2]
[348563692,1736620263316,-1623.08,0.00011364,2]
[348563693,1736620263325,-527.84,0.00011364,2]
[348563694,1736620263334,-1062.89,0.00011364,2]
[348563695,1736620263343,-1566.04,0.00011364,2]
[348563696,1736620263352,-6943.01,0.00011364,2]
[348563697,1736620263361,-500.0,0.00011364,2]
[348563698,1736620263370,-523.34,0.00011364,2]
[348563699,1736620263379,-1589.16,0.00011364,2]
[348563700,1736620263388,-500.0,0.00011364,2]
[348563701,1736620263398,-774.86,0.00011364,2]
[348563702,1736620263408,-1100.64,0.00011364,2]
[348563703,1736620263418,-1000.0,0.00011364,2]
[348563704,1736620263428,-721.14,0.00011364,2]
[348563705,1736620263438,-1579.79,0.00011364,2]
[348563706,1736620263447,-1314.67,0.00011364,2]
[348563707,1736620263457,-1110.43775504,0.00011366,2]
[348563708,1736620263467,-200.0,0.000114,2]
[348563709,1736620263477,-1000.0,0.00011417,2]
[348563710,1736620263487,-8469.98920169,0.00011418,2]
[348563711,1736620263496,-208.76349431,0.00011479,2]
[348563712,1736620263506,-2751.0,0.00011507,2]
[348563713,1736620263516,-177.0,0.00011507,2]
[348563714,1736620263526,-166.0,0.00011507,2]
[348563715,1736620263537,-3000.0,0.0001152,2]
[348563716,1736620263547,-960.36,0.00011534,2]
[348563717,1736620263557,-696.05,0.00011534,2]
[348563718,1736620263567,-500.0,0.00011534,2]
[348563719,1736620263577,-1667.23,0.00011534,2]
[348563720,1736620263587,-2283.16,0.00011534,2]
[348563721,1736620263597,-3818.4,0.00011534,2]
[348563722,1736620263607,-2248.19,0.00011534,2]
[348563723,1736620263617,-500.0,0.00011534,2]
[348563724,1736620263626,-1177.39,0.00011534,2]
[348563725,1736620263637,-716.54,0.00011534,2]
[348563726,1736620263647,-2715.96,0.00011534,2]
[348563727,1736620263657,-500.0,0.00011534,2]
[348563728,1736620263668,-500.0,0.00011534,2]
[348563729,1736620263679,-500.0,0.00011534,2]
[348563730,1736620263690,-500.0,0.00011534,2]
[348563731,1736620263700,-684.54,0.00011534,2]
[348563732,1736620263710,-761.21,0.00011534,2]
[348563733,1736620263720,-500.0,0.00011534,2]
[348563734,1736620263730,-500.0,0.00011534,2]
[348563735,1736620263740,-418.52,0.00011534,2]
[348563736,1736620263751,-500.0,0.00011535,2]
[348563737,1736620263761,-672.05,0.00011535,2]
[348563738,1736620263771,-500.0,0.00011535,2]
[348563739,1736620263781,-500.0,0.00011535,2]
[348563740,1736620263791,-500.0,0.00011535,2]
[348563741,1736620263801,-500.0,0.00011535,2]
[348563742,1736620263811,-500.0,0.00011535,2]
[348563743,1736620263821,-500.0,0.00011535,2]
[348563744,1736620263832,-500.0,0.00011535,2]
[348563745,1736620263842,-500.0,0.00011535,2]
[348563746,1736620263853,-500.0,0.00011535,2]
[348563747,1736620263863,-500.0,0.00011535,2]
[348563748,1736620263873,-557.51,0.00011535,2]
[348563749,1736620263883,-576.99,0.00011535,2]
[348563750,1736620263893,-527.5,0.00011535,2]
[348563751,1736620263903,-500.0,0.00011535,2]
[348563752,1736620263914,-500.0,0.00011535,2]
[348563753,1736620263930,-500.0,0.00011535,2]
[348563754,1736620263940,-500.0,0.00011535,2]
[348563755,1736620263950,-671.41,0.00011535,2]
[348563756,1736620263960,-500.0,0.00011535,2]
[348563757,1736620263970,-735.55,0.00011535,2]
[348563758,1736620263980,-500.0,0.00011535,2]
[348563759,1736620263990,-614.43,0.00011535,2]
[348563760,1736620263999,-687.44,0.00011535,2]
[348563761,1736620264009,-500.0,0.00011535,2]
[348563762,1736620264019,-733.21,0.00011535,2]
[348563763,1736620264030,-500.0,0.00011535,2]
[348563764,1736620264040,-500.0,0.00011535,2]
[348563765,1736620264050,-585.92,0.00011535,2]
[348563766,1736620264060,-1217.93,0.00011535,2]
[348563767,1736620264070,-500.0,0.00011535,2]
[348563768,1736620264080,-500.0,0.00011535,2]
[348563769,1736620264090,-500.0,0.00011535,2]
[348563770,1736620264101,-500.0,0.00011535,2]
[348563771,1736620264110,-500.0,0.00011535,2]
[348563772,1736620264120,-1733.16,0.00011535,2]
[348563773,1736620264130,-500.0,0.00011535,2]
[348563774,1736620264139,-500.0,0.00011535,2]
[348563775,1736620264149,-500.0,0.00011535,2]
[348563776,1736620264159,-954.12,0.00011535,2]
[348563777,1736620264171,-500.0,0.00011535,2]
[348563778,1736620264181,-500.0,0.00011535,2]
[348563779,1736620264191,-500.0,0.00011535,2]
[348563780,1736620264200,-217.120428,0.00011535,2]
[348563781,1736620264210,-622.38,0.00011535,2]
[348563782,1736620264220,-522.79,0.00011535,2]
[348563783,1736620264230,-2493.03,0.00011535,2]
[348563784,1736620264244,-500.0,0.00011535,2]
[348563785,1736620264253,-1215.65,0.00011535,2]
[348563786,1736620264263,-2849.11,0.00011535,2]
[348563787,1736620264275,-186.267351,0.00011535,2]
[348563788,1736620264284,-1952.06,0.00011535,2]
[348563789,1736620264294,-5755.78,0.00011535,2]
[348563790,1736620264305,-1304.79,0.00011535,2]
[348563791,1736620264324,-500.0,0.00011535,2]
[348563792,1736620264334,-500.0,0.00011535,2]
[348563793,1736620264344,-818.64,0.00011535,2]
[348563794,1736620264355,-587.15,0.00011535,2]
[348563795,1736620264364,-179.48858356,0.00011535,2]
[348563796,1736620264374,-500.0,0.00011535,2]
[348563797,1736620264384,-506.69,0.00011535,2]
[348563798,1736620264393,-1028.71,0.00011535,2]
[348563799,1736620264403,-500.0,0.00011535,2]
[348563800,1736620264413,-500.0,0.00011535,2]
[348563801,1736620264423,-500.0,0.00011535,2]
[348563802,1736620264433,-3008.65,0.00011535,2]
[348563803,1736620264443,-2939.45,0.00011535,2]
[348563804,1736620264453,-471.27,0.00011535,2]
[348563805,1736620264463,-500.0,0.00011535,2]
[348563806,1736620264473,-584.79,0.00011535,2]
[348563807,1736620264483,-500.0,0.00011535,2]
[348563808,1736620264493,-500.0,0.00011535,2]
[348563809,1736620264503,-500.0,0.00011535,2]
[348563810,1736620264513,-2813.01,0.00011535,2]
[348563811,1736620264522,-500.0,0.00011535,2]
[348563812,1736620264533,-2066.76,0.00011535,2]
[348563813,1736620264542,-500.0,0.00011535,2]
[348563814,1736620264553,-1001.95,0.00011535,2]
[348563815,1736620264563,-500.0,0.00011535,2]
[348563816,1736620264572,-500.0,0.00011535,2]
[348563817,1736620264583,-500.0,0.00011535,2]
[348563818,1736620264593,-3166.08,0.00011535,2]
[348563819,1736620264603,-500.0,0.00011535,2]
[348563820,1736620264612,-500.0,0.00011535,2]
[348563821,1736620264623,-2016.16,0.00011535,2]
[348563822,1736620264633,-500.0,0.00011535,2]
[348563823,1736620264642,-500.0,0.00011535,2]
[348563824,1736620264653,-1138.0,0.00011535,2]
[348563825,1736620264663,-500.0,0.00011535,2]
[348563826,1736620264674,-738.79,0.00011535,2]
[348563827,1736620264683,-500.0,0.00011536,2]
[348563828,1736620264694,-500.0,0.00011536,2]
[348563829,1736620264704,-500.0,0.00011536,2]
[348563830,1736620264713,-226.32,0.00011536,2]
[348563831,1736620264768,-500.0,0.00011536,2]
[348563832,1736620264778,-192.86,0.00011536,2]
[348563833,1736620264788,-559.74,0.00011536,2]